bitfinex/quotes_ETHUSD_20241129
["timestamp","ask_amount","ask_price","bid_price","bid_amount"]
[1732896937549,2.76977,3610.5,3610.3,1.1395]
[1732896937748,2.76977,3610.4,3610.3,1.1395]
[1732896938063,2.76977,3610.4,3610.3,0.2764]
[1732896938361,2.76985,3610.3,3610.2,0.078]
[1732896938940,2.77022,3609.9,3609.6,5.0]
[1732896939138,2.77026,3609.8,3609.6,5.0]
[1732896939367,2.77031,3609.7,3609.6,5.0]
[1732896939571,5.54043,3609.9,3609.6,5.0]
[1732896939725,2.77023,3609.8,3609.6,5.0]
[1732896939953,3.56438209,3610.8,3609.6,5.0]
[1732896939954,2.77015,3610.0,3609.6,5.0]
[1732896940652,2.76959,3610.7,3609.6,5.0]
[1732896940653,2.77004,3610.1,3609.6,5.0]
[1732896940873,2.77003,3610.1,3609.6,5.0]
[1732896941544,2.77009,3610.0,3609.6,5.0]
[1732896941745,2.76959,3610.7,3609.7,0.8702]
[1732896941949,2.77009,3610.0,3609.7,0.8702]
[1732896942196,3.71114178,3610.8,3609.7,0.8702]
[1732896942392,2.77031,3609.7,3609.6,5.0]
[1732896942682,2.77023,3609.8,3609.6,5.0]
[1732896943046,2.77031,3609.7,3609.6,5.0]
[1732896945447,5.77031,3609.7,3609.6,5.0]
[1732896945647,5.77031,3609.7,3608.9,5.0]
[1732896945648,2.77085,3609.0,3608.9,5.0]
[1732896945954,2.77085,3609.0,3608.9,1.0001]
[1732896945955,14.00043865,3609.0,3608.9,1.0001]
[1732896946258,3.65248,3608.3,3607.2,0.1570132]
[1732896946574,3.65248,3608.3,3607.6,1.1833]
[1732896946575,3.99821906,3608.3,3607.6,1.1833]
[1732896946886,3.61321405,3608.3,3607.6,1.1833]
[1732896947047,3.61321405,3608.3,3608.2,5.5]
[1732896947048,0.84183405,3608.3,3608.2,5.5]
[1732896947748,2.77119,3608.6,3608.2,5.5]
[1732896947943,0.84021671,3608.5,3608.4,0.55]
[1732896948147,0.84021671,3608.5,3608.2,5.5]
[1732896948148,2.77138,3608.3,3608.2,5.0]
[1732896948447,3.61159671,3608.3,3608.2,5.0]
[1732896949302,4.49269671,3608.3,3608.2,5.0]
[1732896949595,2.77192,3607.6,3607.5,5.0]
[1732896949742,3.61213671,3607.6,3607.5,5.0]
[1732896950558,7.61213671,3607.6,3607.5,5.0]
[1732896951501,3.61213671,3607.6,3607.5,5.0]
[1732896951955,4.49323671,3607.6,3607.5,5.0]
[1732896952588,3.61213671,3607.6,3607.5,5.0]
[1732896953176,3.61213671,3607.6,3607.5,5.55]
[1732896953496,0.84021671,3607.6,3607.5,6.12070132]
[1732896953649,3.61213671,3607.6,3607.5,6.12070132]
[1732896953847,0.84021671,3607.6,3607.5,5.55]
[1732896954051,3.61213671,3607.6,3607.5,5.55]
[1732896954287,0.84021671,3607.6,3607.5,5.55]
[1732896954597,2.77169,3607.9,3607.5,5.55]
[1732896954891,3.60823838,3607.8,3607.5,5.55]
[1732896955108,3.60823838,3607.8,3607.6,0.55]
[1732896955109,0.83646838,3607.7,3607.6,0.55]
[1732896955464,0.83646838,3607.7,3607.6,1.105]
[1732896956362,3.60830838,3607.7,3607.6,0.55]
[1732896956563,0.83646838,3607.7,3607.6,0.55]
[1732896957699,3.60830838,3607.7,3607.6,0.55]
[1732896957909,0.83646838,3607.7,3607.6,0.55]
[1732896960014,3.60830838,3607.7,3607.6,0.55]
[1732896961006,2.77192,3607.6,3607.5,5.0]
[1732896961195,3.60838838,3607.6,3607.5,5.55]
[1732896961987,13.09473638,3607.6,3607.5,2.41194281]
[1732896962175,13.09473638,3607.6,3607.2,0.1570132]
[1732896962176,5.77215,3607.3,3607.2,0.1570132]
[1732896962694,2.77246,3606.9,3606.8,5.0]
[1732896963203,3.65356,3606.9,3606.8,5.0]
[1732896963394,6.65356,3606.9,3606.8,5.0]
[1732896963795,2.773,3606.2,3606.1,5.0]
[1732896964779,3.60906697,3606.2,3606.1,5.0]
[1732896964981,0.42822649,3606.2,3606.1,5.5]
[1732896965221,1.60224228,3606.2,3606.1,5.5]
[1732896965722,4.37524228,3606.2,3606.1,5.55]
[1732896965876,3.60911925,3606.2,3606.1,5.0]
[1732896966281,3.60921355,3606.2,3606.1,5.0]
[1732896966483,4.49031355,3606.2,3606.1,5.0]
[1732896967894,3.60921355,3606.2,3606.1,5.0]
[1732896968216,3.60921355,3606.2,3606.1,5.55]
[1732896969235,0.83621355,3606.2,3606.1,5.55]
[1732896969442,0.83570568,3606.2,3606.1,5.0]
[1732896969591,3.60870568,3606.2,3606.1,5.0]
[1732896970207,3.60870568,3606.2,3606.1,8.93662]
[1732896970208,0.83570568,3606.2,3606.1,8.93662]
[1732896970414,0.83570568,3606.2,3606.1,6.16355]
[1732896970675,0.83570568,3606.2,3606.1,5.55]
[1732896970805,4.48980568,3606.2,3606.1,5.0]
[1732896971011,4.48980568,3606.2,3606.1,4.13323655]
[1732896971309,2.77346,3605.6,3605.5,1.81883773]
[1732896971522,4.49026568,3605.6,3605.5,1.81883773]
[1732896972060,3.60916568,3605.6,3605.5,1.81883773]
[1732896974322,4.93303862,3605.6,3605.5,1.81883773]
[1732896974726,5.08001334,3605.6,3605.5,1.81883773]
[1732896974937,4.31389031,3605.6,3605.5,1.81883773]
[1732896975361,4.31389031,3605.6,3605.5,0.95202383]
[1732896976310,4.16691559,3605.6,3605.5,0.95202383]
[1732896976935,3.99359114,3605.6,3605.5,0.95202383]
[1732896977348,6.99359114,3605.6,3605.5,0.95202383]
[1732896978426,7.13847217,3605.6,3605.5,0.95202383]
[1732896979668,1.36501217,3605.6,3605.5,0.95202383]
[1732896979882,1.36501217,3605.6,3605.5,2.49864021]
[1732896980244,4.13847217,3605.6,3605.5,0.95202383]
[1732896980793,1.36501217,3605.6,3605.5,0.95202383]
[1732896980997,4.13847217,3605.6,3605.5,0.95202383]
[1732896981344,1.36501217,3605.6,3605.5,0.95202383]
[1732896982183,1.11025016,3605.6,3605.5,0.95202383]
[1732896982395,1.36681298,3605.6,3605.5,0.95202383]
[1732896985699,1.36681298,3605.6,3605.5,4.99481621]
[1732896985873,1.36681298,3605.6,3605.5,5.27121621]
[1732896986075,0.95808557,3605.6,3605.5,5.27121621]
[1732896986274,0.95808557,3605.6,3605.5,1.94767621]
[1732896986473,0.95808557,3605.6,3605.5,0.95202383]
[1732896986685,0.95808557,3605.6,3605.5,2.17222383]
[1732896987108,0.81320454,3605.6,3605.5,2.17222383]
[1732896987265,0.81320454,3605.6,3605.5,0.95202383]
[1732896987266,3.58666454,3605.6,3605.5,0.95202383]
[1732896987760,0.81320454,3605.6,3605.5,0.95202383]
[1732896987961,0.55774991,3605.6,3605.5,0.95202383]
[1732896988493,3.33120991,3605.6,3605.5,0.95202383]
[1732896988688,7.56010991,3605.6,3605.5,0.95202383]
[1732896988936,5.77354,3605.5,3605.0,50.0]
[1732896989240,2.77384,3605.1,3605.0,50.0]
[1732896989453,3.03125661,3605.1,3605.0,50.0]
[1732896989999,3.4436574,3605.1,3605.0,49.37578549]
[1732896990341,3.4436574,3605.1,3605.0,38.80166301]
[1732896990906,3.03125661,3605.1,3605.0,38.80166301]
[1732896992001,4.26015661,3605.1,3605.0,38.80166301]
[1732896992555,11.46015661,3605.1,3605.0,27.69200802]
[1732896992718,10.63621388,3605.1,3605.0,4.78525846]
[1732896992919,0.2,3604.7,3604.6,4.9575433]
[1732896993136,8.97863061,3604.7,3604.6,4.9575433]
[1732896993301,20.87026661,3604.7,3604.6,2.7599233]
[1732896993643,10.03156661,3604.7,3604.6,1.5324768]
[1732896994149,10.4432362,3604.7,3604.6,1.5324768]
[1732896995209,7.99776843,3604.7,3604.6,1.5324768]
[1732896995412,7.4432362,3604.7,3604.6,1.5324768]
[1732896995719,4.6690862,3604.7,3604.6,1.5324768]
[1732896995916,0.6690862,3604.7,3604.6,1.5324768]
[1732896996565,0.6690862,3604.7,3604.6,2.08426248]
[1732896996761,0.6690862,3604.7,3604.6,4.3067068]
[1732896997093,0.25741661,3604.7,3604.6,4.3067068]
[1732896997269,0.25741661,3604.7,3604.6,4.8567068]
[1732896997654,0.25741661,3604.7,3604.6,4.3067068]
[1732896998551,0.25741661,3604.7,3604.6,1.5324768]
[1732896999188,0.25741661,3604.7,3604.6,4.60869448]
[1732896999351,0.25741661,3604.7,3604.6,1.83446448]
[1732897000211,0.25741661,3604.7,3604.6,1.5324768]
[1732897000559,3.03156661,3604.7,3604.6,1.5324768]
[1732897001356,0.25741661,3604.7,3604.6,1.5324768]
[1732897002418,3.03156661,3604.7,3604.6,1.5324768]
[1732897002578,25.14429561,3604.7,3604.6,6.8e-06]
[1732897002781,2.77454,3604.2,3604.1,1.85622458]
[1732897002965,6.51815661,3604.2,3604.1,0.67976142]
[1732897003902,10.51815661,3604.2,3604.1,0.67976142]
[1732897004620,11.07617021,3604.2,3604.1,0.67976142]
[1732897005114,7.07617021,3604.2,3604.1,0.67976142]
[1732897005316,6.51815661,3604.2,3604.1,0.67976142]
[1732897005987,3.03195661,3604.2,3604.1,0.67976142]
[1732897006197,6.03195661,3604.2,3604.1,0.67976142]
[1732897006518,3.03195661,3604.2,3604.1,0.67976142]
[1732897008328,7.03195661,3604.2,3604.1,0.67976142]
[1732897008513,10.51815661,3604.2,3604.1,0.67976142]
[1732897009928,7.03195661,3604.2,3604.1,0.67976142]
[1732897010090,7.03195661,3604.2,3604.1,1.24773756]
[1732897010290,4.25741661,3604.2,3604.1,1.24773756]
[1732897010619,0.25741661,3604.2,3604.1,1.24773756]
[1732897010923,2.77409,3604.8,3604.1,5.42914756]
[1732897011121,0.25665858,3604.7,3604.1,2.65453756]
[1732897011291,2.77406,3604.9,3604.2,1.31545376]
[1732897011526,0.25665858,3604.8,3604.2,1.31545376]
[1732897011745,0.25665858,3605.0,3604.6,2.77421]
[1732897012046,2.7739,3605.1,3604.7,1.4636]
[1732897012220,3.03062858,3605.0,3604.7,1.4636]
[1732897012555,0.25665858,3604.9,3604.7,1.4636]
[1732897012760,2.77405,3604.9,3604.7,1.4636]
[1732897013066,3.03072858,3604.8,3604.7,1.4636]
[1732897013360,2.77438,3604.4,3604.1,0.67976142]
[1732897013514,0.25665858,3604.3,3604.1,0.62976142]
[1732897013721,3.03111858,3604.3,3604.1,0.62976142]
[1732897013958,3.03119858,3604.2,3604.1,0.62976142]
[1732897014630,3.03130679,3604.2,3604.1,0.62976142]
[1732897015030,0.25676679,3604.2,3604.1,0.62976142]
[1732897015262,3.03116679,3604.4,3604.1,1.19273756]
[1732897015464,0.25676679,3604.3,3604.1,1.19273756]
[1732897015656,0.25676679,3604.2,3604.1,1.19273756]
[1732897016442,0.25676679,3604.3,3604.1,2.62773756]
[1732897016641,0.25676679,3604.2,3604.1,2.62773756]
[1732897016939,0.25676679,3604.3,3604.2,0.2764]
[1732897017139,2.77427,3604.6,3604.2,1.06681376]
[1732897017366,2.77428,3604.6,3604.2,1.06681376]
[1732897017565,2.77438,3604.4,3604.2,1.06681376]
[1732897017773,2.77446,3604.3,3604.2,1.06681376]
[1732897017975,2.77446,3604.3,3604.2,0.2764]
[1732897018778,2.77454,3604.2,3604.1,0.62976142]
[1732897018947,2.77433,3604.5,3604.1,0.62976142]
[1732897019152,2.77419,3604.7,3604.1,0.62976142]
[1732897019574,2.77401,3604.9,3604.2,1.4699]
[1732897019756,2.77394,3605.0,3604.4,2.77438]
[1732897019959,2.7738,3605.2,3604.6,2.77423]
[1732897020176,2.77355,3605.5,3604.6,2.77423]
[1732897020470,2.77339,3605.7,3604.6,2.77423]
[1732897020471,2.77338,3605.7,3604.8,2.77402]
[1732897020639,2.77347,3605.6,3605.0,2.77391]
[1732897020842,2.77332,3605.8,3605.1,0.2764]
[1732897021157,2.77326,3605.9,3605.2,4.10404]
[1732897021500,1.596596,3606.4,3605.2,4.10404]
[1732897021501,0.4862,3606.4,3605.2,1.3303]
[1732897021639,2.77354,3605.5,3605.2,1.3303]
[1732897021835,3.25904,3606.4,3605.2,4.10399]
[1732897022035,0.4862,3606.4,3605.2,2.77376]
[1732897022240,2.77292,3606.3,3605.4,2.7736]
[1732897022463,2.773,3606.2,3605.4,2.7736]
[1732897022685,0.4862,3606.4,3605.1,2.77384]
[1732897022876,2.7733,3605.9,3605.0,4.15902]
[1732897023077,2.77308,3606.1,3605.2,2.77372]
[1732897023277,2.77308,3606.1,3605.4,2.77359]
[1732897023478,2.77294,3606.3,3605.6,2.77341]
[1732897023686,2.77294,3606.3,3605.4,2.77361]
[1732897023869,0.4862,3606.4,3605.8,2.77328]
[1732897024052,2.77294,3606.3,3605.7,1.3399]
[1732897024376,2.77294,3606.3,3605.7,4.11327]
[1732897024581,2.77294,3606.3,3605.7,1.3399]
[1732897024741,0.4862,3606.8,3605.7,1.3399]
[1732897025081,0.4862,3606.8,3605.3,1.3399]
[1732897025082,2.77337,3605.8,3605.3,1.3399]
[1732897025282,0.55046278,3606.7,3604.8,1.3399]
[1732897025283,0.4862,3606.3,3604.8,1.3399]
[1732897025486,0.4862,3606.3,3604.3,2.77443]
[1732897025644,2.77424,3604.6,3604.3,1.3399]
[1732897025838,0.4862,3605.0,3604.1,1.51976142]
[1732897026083,2.77432,3604.5,3604.1,1.51976142]
[1732897026268,0.4862,3605.0,3604.1,1.51976142]
[1732897026440,2.77436,3604.5,3604.1,1.51976142]
[1732897026684,0.4862,3605.0,3604.1,1.51976142]
[1732897026878,2.77414,3604.8,3604.1,1.51976142]
[1732897027125,2.77421,3604.7,3604.1,4.29430142]
[1732897027333,2.77421,3604.7,3604.1,1.51976142]
[1732897027618,2.77421,3604.7,3604.1,4.29437142]
[1732897027821,0.4862,3605.0,3604.1,1.51976142]
[1732897028005,2.77439,3604.4,3604.1,1.51976142]
[1732897028517,2.77424,3604.6,3604.1,1.51976142]
[1732897028731,2.77431,3604.5,3604.1,1.51976142]
[1732897028881,2.77417,3604.7,3604.1,1.51976142]
[1732897029083,2.77423,3604.6,3604.1,1.51976142]
[1732897029289,2.77408,3604.8,3604.1,4.29437142]
[1732897029521,2.77427,3604.6,3604.1,1.51976142]
[1732897029824,2.77427,3604.6,3603.9,7.77476]
[1732897029825,3.26089,3604.0,3603.9,4.27111625]
[1732897030035,6.26089,3604.0,3603.9,4.27111625]
[1732897030183,2.77469,3604.0,3603.9,4.27111625]
[1732897030586,3.03176312,3604.0,3603.9,4.27111625]
[1732897031013,6.77469,3604.0,3603.9,4.27111625]
[1732897031185,3.0317593,3604.0,3603.9,4.27111625]
[1732897031914,3.5179593,3604.0,3603.9,4.27111625]
[1732897032434,10.5179593,3604.0,3603.9,6.25e-06]
[1732897032592,49.08699495,3604.0,3603.9,6.25e-06]
[1732897032793,46.4243619,3604.0,3603.9,6.25e-06]
[1732897033289,45.80771683,3604.0,3603.9,6.25e-06]
[1732897033629,12.31593011,3604.0,3603.9,6.25e-06]
[1732897033943,5.77561,3602.8,3602.5,5.0]
[1732897034156,6.44380495,3602.8,3602.5,5.0]
[1732897034366,6.44380495,3602.8,3600.4,5.0]
[1732897034367,0.2,3601.3,3600.4,5.0]
[1732897034507,5.77739,3600.5,3600.4,5.0]
[1732897034707,4.38839297,3600.5,3600.4,5.0]
[1732897034954,1.61100297,3600.5,3600.4,5.0]
[1732897035725,4.38839297,3600.5,3600.4,5.0]
[1732897035923,1.61100297,3600.5,3600.4,5.0]
[1732897036153,4.38839297,3600.5,3600.4,5.0]
[1732897036560,1.61100297,3600.5,3600.4,5.0]
[1732897037748,0.84181298,3600.5,3600.4,5.0]
[1732897038654,1.26669044,3600.5,3600.4,5.0]
[1732897038858,0.84181298,3600.5,3600.4,5.0]
[1732897039562,2.77687,3601.2,3600.4,5.0]
[1732897039563,0.2570693,3600.8,3600.4,5.0]
[1732897039726,0.2570693,3601.0,3600.4,5.0]
[1732897040060,0.2570693,3601.2,3600.4,7.77746]
[1732897040264,2.77739,3600.5,3600.4,5.0]
[1732897040421,3.0344593,3600.5,3600.4,5.0]
[1732897041114,2.77739,3600.5,3600.4,5.0]
[1732897041314,0.25459134,3600.5,3600.4,5.0]
[1732897041516,0.40734614,3600.6,3600.4,5.0]
[1732897041517,0.25459134,3600.6,3600.4,5.0]
[1732897041729,0.25459134,3600.8,3600.4,5.0]
[1732897042254,5.77667,3601.5,3600.4,5.0]
[1732897042255,0.25459134,3601.0,3600.4,5.0]
[1732897042463,0.25459134,3601.2,3600.4,7.77745]
[1732897042634,0.25459134,3601.2,3600.4,5.0]
[1732897042845,3.03129134,3601.4,3600.5,2.77738]
[1732897043137,2.77709,3600.9,3600.4,5.0]
[1732897043341,0.25459134,3600.8,3600.4,5.0]
[1732897043676,2.77732,3600.6,3600.4,5.0]
[1732897043874,3.03198134,3600.5,3600.4,5.0]
[1732897044363,3.03175565,3600.5,3600.4,5.0]
[1732897045737,4.09855565,3600.5,3600.4,3.61127]
[1732897045940,5.7777,3600.1,3600.0,203.12443727]
[1732897046160,6.53878939,3600.1,3600.0,203.12443727]
[1732897046375,18.25033039,3600.1,3600.0,200.34665727]
[1732897046556,18.42401202,3600.1,3600.0,196.17998727]
[1732897046762,18.52401202,3600.1,3600.0,196.17998727]
[1732897046987,18.42401202,3600.1,3600.0,196.17998727]
[1732897047272,17.47182902,3600.1,3600.0,196.17998727]
[1732897047426,12.27648102,3600.1,3600.0,196.17998727]
[1732897047631,12.60386099,3600.1,3600.0,195.55474279]
[1732897047831,10.52352199,3600.1,3600.0,195.55474279]
[1732897048072,10.72662221,3600.1,3600.0,195.55474279]
[1732897048441,8.44754321,3600.1,3600.0,195.55474279]
[1732897048832,16.29402321,3600.1,3600.0,195.55474279]
[1732897049393,5.66984321,3600.1,3600.0,195.55474279]
[1732897049715,9.35370714,3600.1,3600.0,195.55474279]
[1732897049861,10.64188961,3600.1,3600.0,195.55474279]
[1732897050761,7.86418961,3600.1,3600.0,195.55474279]
[1732897050965,10.64188961,3600.1,3600.0,195.55474279]
[1732897051168,7.64188961,3600.1,3600.0,195.55474279]
[1732897051382,8.06460714,3600.1,3600.0,195.55474279]
[1732897051602,10.64188961,3600.1,3600.0,195.55474279]
[1732897052110,13.03948961,3600.1,3600.0,195.55474279]
[1732897052309,14.10628961,3600.1,3600.0,195.55474279]
[1732897053192,14.20628961,3600.1,3600.0,195.55474279]
[1732897053520,14.10628961,3600.1,3600.0,195.55474279]
[1732897054206,14.20628961,3600.1,3600.0,195.55474279]
[1732897054729,14.10628961,3600.1,3600.0,195.55474279]
[1732897055325,14.20628961,3600.1,3600.0,195.55474279]
[1732897056079,14.20628961,3600.1,3600.0,194.16585279]
[1732897056325,14.20628961,3600.1,3600.0,191.38807279]
[1732897056686,13.79956587,3600.1,3600.0,187.22140279]
[1732897056912,16.71056587,3600.1,3600.0,187.22140279]
[1732897057424,13.7998203,3600.1,3600.0,187.22140279]
[1732897057641,13.6998203,3600.1,3600.0,187.22140279]
[1732897058732,10.6998203,3600.1,3600.0,187.22140279]
[1732897058885,8.3022203,3600.1,3600.0,187.22140279]
[1732897059087,13.1201043,3600.1,3600.0,187.22140279]
[1732897059487,12.2334383,3600.1,3600.0,187.22140279]
[1732897060089,10.2354203,3600.1,3600.0,187.22140279]
[1732897060807,7.236256,3600.1,3600.0,187.22140279]
[1732897061742,4.458556,3600.1,3600.0,187.22140279]
[1732897061914,10.236256,3600.1,3600.0,187.22140279]
[1732897063110,7.458556,3600.1,3600.0,187.22140279]
[1732897063623,4.45977588,3600.1,3600.0,187.71410478]
[1732897064181,4.46198345,3600.1,3600.0,187.71410478]
[1732897064723,4.46198345,3600.1,3600.0,188.88450279]
[1732897065853,4.20530779,3600.1,3600.0,188.88450279]
[1732897066610,4.20530779,3600.1,3600.0,187.22140279]
[1732897067310,9.98300779,3600.1,3600.0,187.22140279]
[1732897068062,9.98300779,3600.1,3600.0,190.32140279]
[1732897068376,7.20530779,3600.1,3600.0,190.32140279]
[1732897070873,7.20564104,3600.1,3600.0,190.32140279]
[1732897071873,4.20564104,3600.1,3600.0,190.32140279]
[1732897073040,4.20564104,3600.1,3600.0,191.87080279]
[1732897076949,4.20564104,3600.1,3600.0,192.14720279]
[1732897077694,4.20564104,3600.1,3600.0,194.92497279]
[1732897078194,4.20564104,3600.1,3600.0,197.28070114]
[1732897078486,4.09357012,3600.1,3600.0,192.95353114]
[1732897078644,0.20564104,3600.1,3600.0,192.95353114]
[1732897078846,0.20564104,3600.1,3600.0,195.73130114]
[1732897079304,0.20564104,3600.1,3600.0,192.95353114]
[1732897079482,0.20564104,3600.1,3600.0,190.59780279]
[1732897079670,0.15316577,3600.1,3600.0,190.59780279]
[1732897080283,0.15316577,3600.1,3600.0,193.37557279]
[1732897080484,0.10627975,3600.1,3600.0,193.37557279]
[1732897081087,0.07974798,3600.1,3600.0,193.37557279]
[1732897082094,0.07974798,3600.1,3600.0,193.09917279]
[1732897082250,0.07974798,3600.1,3600.0,190.32140279]
[1732897082884,0.07974798,3600.1,3600.0,191.18090801]
[1732897083092,1.112096,3600.7,3600.0,193.95867801]
[1732897083255,1.112096,3600.7,3600.1,1.6501]
[1732897083593,3.889336,3600.7,3600.1,1.6501]
[1732897084354,1.112096,3600.7,3600.1,1.6501]
[1732897084758,4.0,3600.2,3600.1,1.6501]
[1732897085992,4.0,3600.2,3600.0,190.32140279]
[1732897086355,1.112096,3600.7,3600.1,1.5432]
[1732897086601,3.889336,3600.7,3600.1,1.5432]
[1732897086869,1.112096,3600.7,3600.1,1.5432]
[1732897087043,1.112096,3600.7,3600.2,2.77762]
[1732897087317,1.112096,3600.7,3600.1,1.5432]
[1732897087318,4.0,3600.3,3600.1,1.5432]
[1732897087877,1.112096,3600.7,3600.1,1.5432]
[1732897088076,3.889336,3600.7,3600.1,1.5432]
[1732897088586,2.77731,3600.6,3600.1,1.5432]
[1732897088794,1.112096,3600.7,3600.1,1.5432]
[1732897089720,2.77733,3600.6,3600.1,1.5432]
[1732897089895,3.889336,3600.7,3600.1,1.5432]
[1732897090476,3.889336,3600.7,3600.0,190.32140279]
[1732897090477,2.7777,3600.1,3600.0,190.32140279]
[1732897090684,4.48754696,3600.1,3600.0,190.32140279]
[1732897091225,5.05749595,3600.1,3600.0,190.32140279]
[1732897091622,20.070659,3600.1,3600.0,190.32140279]
[1732897091781,42.4997103,3600.1,3600.0,190.32140279]
[1732897091985,41.04938428,3600.1,3600.0,189.69621956]
[1732897092184,41.66912252,3600.1,3600.0,189.69621956]
[1732897092437,37.66912252,3600.1,3600.0,184.07501394]
[1732897092733,37.98760443,3600.1,3600.0,181.05926996]
[1732897093021,36.71489588,3600.1,3600.0,181.05926996]
[1732897093185,40.71489588,3600.1,3600.0,181.05926996]
[1732897093382,31.12510797,3600.1,3600.0,178.28148996]
[1732897093719,20.04457472,3600.1,3600.0,178.28148996]
[1732897093924,9.98417672,3600.1,3600.0,178.28148996]
[1732897094523,12.86969876,3600.1,3600.0,178.28148996]
[1732897095283,9.98417672,3600.1,3600.0,178.28148996]
[1732897095481,12.86969876,3600.1,3600.0,178.28148996]
[1732897095788,9.98405198,3600.1,3600.0,178.28148996]
[1732897095998,19.24073598,3600.1,3600.0,171.33703996]
[1732897096321,37.23969411,3600.1,3600.0,167.17036996]
[1732897096522,42.5429935,3600.1,3600.0,165.84070497]
[1732897096728,37.77481169,3600.1,3600.0,149.74729933]
[1732897096936,43.43013052,3600.1,3600.0,149.53970644]
[1732897097219,37.77481169,3600.1,3600.0,149.1715431]
[1732897097540,38.12713894,3600.1,3600.0,140.03163914]
[1732897097690,37.77481169,3600.1,3600.0,140.03163914]
[1732897098337,38.95903834,3600.1,3599.9,0.1570132]
[1732897098494,5.88893,3599.8,3599.7,4.62960858]
[1732897098685,57.73196628,3599.8,3599.7,1.84618667]
[1732897098885,62.53520233,3599.8,3599.7,1.84618667]
[1732897099083,73.30935707,3599.8,3599.7,1.84618667]
[1732897099348,2.97847,3599.1,3599.0,6.67e-06]
[1732897099620,23.45225962,3599.1,3599.0,6.67e-06]
[1732897099822,20.23038249,3599.1,3599.0,6.67e-06]
[1732897100024,20.91498399,3599.1,3599.0,6.67e-06]
[1732897100226,24.36931939,3599.1,3599.0,6.67e-06]
[1732897100429,31.36748508,3599.1,3599.0,6.67e-06]
[1732897100720,5.77901,3598.4,3598.3,2.83712868]
[1732897100924,12.74908339,3598.4,3598.3,2.83712868]
[1732897101129,9.70699539,3598.4,3598.3,2.83712868]
[1732897101489,13.70699539,3598.4,3598.3,2.83712868]
[1732897101723,13.80699539,3598.4,3598.3,1.44757868]
[1732897101935,13.70699539,3598.4,3598.3,1.44757868]
[1732897102135,10.82584539,3598.4,3598.3,1.44757868]
[1732897102287,7.82584539,3598.4,3598.3,1.44757868]
[1732897103418,7.82424241,3598.4,3598.3,1.44757868]
[1732897104325,10.82424241,3598.4,3598.3,1.44757868]
[1732897104690,5.04523241,3598.4,3598.3,1.44757868]
[1732897104889,7.82424241,3598.4,3598.3,2.95517868]
[1732897105521,5.04523241,3598.4,3598.3,2.95517868]
[1732897105886,4.92607706,3598.4,3598.3,3.25069655]
[1732897106088,4.66625359,3598.4,3598.3,6.02978655]
[1732897106313,0.42713312,3598.8,3598.7,2.77878]
[1732897106521,0.42713312,3599.1,3598.8,2.7787]
[1732897106686,0.42713312,3599.3,3599.1,1.613]
[1732897106893,0.42713312,3599.5,3599.2,2.77839]
[1732897107093,0.42713312,3599.7,3599.2,2.77839]
[1732897107293,0.17373782,3599.6,3598.3,1.44757868]
[1732897107547,0.42726768,3598.6,3598.3,1.44757868]
[1732897107709,3.20605768,3598.7,3598.2,1.5817]
[1732897107910,0.42726768,3598.5,3598.2,1.73987]
[1732897108300,0.42726768,3598.6,3598.2,1.73987]
[1732897108498,0.42726768,3598.8,3598.5,1.629]
[1732897108729,2.77833,3599.3,3598.5,1.629]
[1732897108730,0.42726768,3598.9,3598.5,1.629]
[1732897108923,0.17373782,3599.0,3598.5,1.629]
[1732897108924,0.42726768,3599.0,3598.5,1.629]
[1732897109141,0.42726768,3598.9,3598.5,1.629]
[1732897109454,0.42726768,3598.8,3598.5,1.629]
[1732897109657,0.42726768,3599.0,3598.5,1.629]
[1732897110151,0.6010055,3599.1,3598.5,1.629]
[1732897110358,0.42726768,3599.1,3598.5,2.363527]
[1732897110581,0.42726768,3599.0,3598.5,2.363527]
[1732897111023,0.6010055,3598.9,3598.5,2.363527]
[1732897111228,0.42726768,3598.9,3598.6,1.5111]
[1732897111425,0.42726768,3598.9,3597.7,2.87949]
[1732897111426,0.42726768,3599.0,3598.7,0.2245627]
[1732897111658,0.17373782,3599.2,3598.9,2.7786]
[1732897111659,0.42726768,3599.2,3598.9,2.7786]
[1732897111955,0.42726768,3599.2,3598.1,2.77918]
[1732897111956,0.42726768,3599.2,3599.0,1.5111]
[1732897112156,3.3794755,3599.1,3599.0,1.5111]
[1732897112324,2.95220782,3599.1,3599.0,1.5111]
[1732897112524,0.17373782,3599.1,3599.0,1.5111]
[1732897112722,2.95220782,3599.1,3599.0,1.5111]
[1732897112922,2.77885,3598.7,3597.8,1.5018]
[1732897113114,3.3796852,3598.6,3597.9,0.65018]
[1732897113317,0.60082144,3598.5,3598.0,1.5018]
[1732897113620,0.42713283,3598.5,3598.0,1.5018]
[1732897113813,0.42713283,3598.6,3598.4,1.5018]
[1732897114019,0.42713283,3598.7,3598.4,4.986795]
[1732897114243,0.42713283,3598.7,3598.4,2.207805]
[1732897114440,0.42713283,3598.7,3598.4,1.5018]
[1732897115251,0.60082144,3598.8,3598.4,1.5018]
[1732897115459,3.0,3600.2,3598.4,1.5018]
[1732897115460,0.42713283,3598.6,3598.4,1.5018]
[1732897115624,0.60082144,3598.6,3598.4,1.5018]
[1732897115824,0.42713283,3598.6,3598.4,1.5018]
[1732897116134,0.42713283,3599.1,3598.5,1.6449]
[1732897116343,0.41043076,3599.0,3598.5,1.6449]
[1732897116660,0.41043076,3598.9,3598.8,1.6449]
[1732897117269,0.83756359,3598.9,3598.8,1.6449]
[1732897117464,0.41043076,3598.9,3598.8,1.6449]
[1732897117669,0.83771806,3598.9,3598.8,1.6449]
[1732897117965,0.58411937,3598.9,3598.8,1.6449]
[1732897118163,3.61643804,3598.9,3598.8,1.6449]
[1732897118344,3.87296548,3598.9,3598.8,1.6449]
[1732897118949,0.6669582,3598.9,3598.8,1.6449]
[1732897119164,1.09435966,3598.9,3598.8,1.6449]
[1732897119365,0.6669582,3598.9,3598.8,1.6449]
[1732897119832,3.61926681,3598.9,3598.8,1.6449]
[1732897120033,3.4455782,3598.9,3598.8,1.6449]
[1732897120235,3.4455782,3598.9,3597.6,7.77961]
[1732897120236,2.77901,3598.4,3598.3,1.6447]
[1732897120545,2.77901,3598.4,3597.7,1.6447]
[1732897120546,2.77948,3597.8,3597.7,1.6447]
[1732897120883,3.4464382,3597.8,3597.7,1.6447]
[1732897121179,3.87412617,3597.8,3597.7,1.6447]